fUST/lending_fUST_20241127
["ID","MTS","AMOUNT","RATE_DAILY","PERIOD"]
[343479461,1732656635695,-500.0,0.00027397,3]
[343479462,1732656635707,-500.0,0.00027397,3]
[343479463,1732656635717,-500.0,0.00027397,3]
[343479464,1732656635727,-500.0,0.00027397,3]
[343479465,1732656635742,-910.19,0.00027397,3]
[343479466,1732656635751,-910.19,0.00027397,3]
[343479467,1732656635761,-500.0,0.00027397,3]
[343479468,1732656635770,-500.0,0.00027397,3]
[343479469,1732656635779,-500.0,0.00027397,3]
[343479470,1732656635788,-500.0,0.00027397,3]
[343479471,1732656635797,-500.0,0.00027397,3]
[343479472,1732656635807,-505.49167327,0.00027397,3]
[343479473,1732656635816,-500.0,0.00027397,3]
[343479474,1732656635827,-500.0,0.00027397,3]
[343479475,1732656635837,-500.0,0.00027397,3]
[343479476,1732656635846,-500.0,0.00027397,3]
[343479477,1732656635857,-500.0,0.00027397,3]
[343479478,1732656635866,-500.0,0.00027397,3]
[343479479,1732656635877,-500.0,0.00027397,3]
[343479480,1732656635887,-500.0,0.00027397,3]
[343479481,1732656635897,-500.65046057,0.00027397,3]
[343479482,1732656635906,-500.0,0.00027397,3]
[343479483,1732656635916,-500.0,0.00027397,3]
[343479484,1732656635925,-500.0,0.00027397,3]
[343479485,1732656635935,-313.12,0.00027397,3]
[343479486,1732656635945,-500.0,0.00027397,3]
[343479487,1732656635954,-500.0,0.00027397,3]
[343479488,1732656635964,-500.0,0.00027397,3]
[343479489,1732656635973,-509.19292601,0.00027397,3]
[343479490,1732656635988,-500.0,0.00027397,3]
[343479491,1732656636001,-500.0,0.00027397,3]
[343479492,1732656636011,-500.0,0.00027397,3]
[343479493,1732656636021,-500.0,0.00027397,3]
[343479494,1732656636031,-500.0,0.00027397,3]
[343479495,1732656636042,-500.0,0.00027397,3]
[343479496,1732656636052,-500.0,0.00027397,3]
[343479497,1732656636061,-240.0,0.00027598,2]
[343479498,1732656636071,-582.54,0.00027769,3]
[343479499,1732656636082,-433.48,0.00027769,3]
[343479500,1732656636091,-500.0,0.00027769,3]
[343479501,1732656636101,-500.0,0.00027769,3]
[343479502,1732656636110,-8032.39180774,0.0002777,2]
[343479503,1732656636119,-5000.0,0.0002777,2]
[343479504,1732656636128,-500.0,0.00028694,3]
[343479505,1732656636137,-611.34,0.00028694,3]
[343479506,1732656636147,-582.54,0.00028767,3]
[343479507,1732656636157,-500.0,0.00028767,3]
[343479508,1732656636166,-164.0,0.00028767,2]
[343479509,1732656636176,-500.0,0.00028799,3]
[343479510,1732656636186,-500.0,0.00028799,2]
[343479511,1732656636195,-910.19,0.00028799,3]
[343479512,1732656636204,-500.0,0.00028799,3]
[343479513,1732656636214,-6911.88554364,0.00028882,2]
[343479514,1732656636224,-500.0,0.00028991,3]
[343479515,1732656636242,-582.54,0.00029198,3]
[343479516,1732656636252,-197.0351502,0.00029198,3]
[343479517,1732656636262,-500.0,0.00029199,3]
[343479518,1732656636271,-582.54,0.00029199,3]
[343479519,1732656636282,-582.54,0.00029199,3]
[343479520,1732656636291,-582.54,0.00029199,3]
[343479521,1732656636301,-582.54,0.00029199,3]
[343479522,1732656636311,-582.54,0.00029199,3]
[343479523,1732656636320,-582.54,0.00029199,3]
[343479524,1732656636330,-582.54,0.00029199,3]
[343479525,1732656636339,-582.54,0.00029199,3]
[343479526,1732656636348,-582.54,0.00029199,3]
[343479527,1732656636358,-582.54,0.00029199,3]
[343479528,1732656636367,-582.54,0.00029199,3]
[343479529,1732656636377,-582.54,0.00029199,3]
[343479530,1732656636386,-582.54,0.00029199,3]
[343479531,1732656636395,-582.54,0.00029199,3]
[343479532,1732656636405,-582.63940641,0.00029199,3]
[343479533,1732656636415,-500.0,0.00029199,3]
[343479534,1732656636424,-500.0,0.00029199,3]
[343479535,1732656636433,-910.19,0.00029199,3]
[343479536,1732656636443,-910.19,0.00029199,3]
[343479537,1732656636452,-910.19,0.00029199,3]
[343479538,1732656636462,-910.19,0.00029199,3]
[343479539,1732656636471,-910.19,0.00029199,3]
[343479540,1732656636481,-910.19,0.00029199,3]
[343479541,1732656636495,-910.19,0.00029199,3]
[343479542,1732656636504,-910.19,0.00029199,3]
[343479543,1732656636513,-910.19,0.00029199,3]
[343479544,1732656636523,-910.19,0.00029199,3]
[343479545,1732656636533,-910.19,0.00029199,3]
[343479546,1732656636542,-222000.0,0.000292,2]
[343479547,1732656636552,-500.0,0.00029273,5]
[343479548,1732656636561,-500.0,0.00029273,5]
[343479549,1732656636571,-910.19,0.00029297,3]
[343479550,1732656636580,-5000.0,0.00029298,7]
[343479551,1732656636589,-910.19,0.00029298,3]
[343479552,1732656636599,-910.19,0.00029298,3]
[343479553,1732656636608,-150.01,0.00029299,2]
[343479554,1732656636617,-4036.03293722,0.00029299,2]
[343479555,1732656636626,-152.22240109,0.00029299,2]
[343479556,1732656636636,-910.19,0.00029299,3]
[343479557,1732656636645,-910.19,0.00029299,3]
[343479558,1732656636655,-910.19,0.00029299,3]
[343479559,1732656636665,-910.19,0.00029299,3]
[343479560,1732656636753,-910.19,0.00029299,3]
[343479561,1732656636763,-910.19,0.00029299,3]
[343479562,1732656636773,-910.39819701,0.00029299,3]
[343479563,1732656636782,-252207.83689695,0.000293,5]
[343479564,1732656636803,-3209.76066872,0.000293,5]
[343479565,1732656636814,-93891.72687028,0.000293,5]
[343479566,1732656638355,-1027.4929553,0.00025694,2]
[343479567,1732656638365,-256.8,0.00027387,10]
[343479568,1732656638375,-26948.06583286,0.000293,5]
[343479569,1732656638385,-3000.0,0.000294,2]
[343479570,1732656638394,-7526.69730802,0.000294,7]
[343479571,1732656638404,-153.63,0.000294,31]
[343479572,1732656638413,-153.63,0.000294,31]
[343479573,1732656638423,-153.63,0.000294,31]
[343479574,1732656638432,-153.63,0.000294,31]
[343479575,1732656638442,-153.63,0.000294,31]
[343479576,1732656638451,-153.63,0.000294,31]
[343479577,1732656638460,-153.63,0.000294,31]
[343479578,1732656638470,-153.63,0.000294,31]
[343479579,1732656638479,-153.63,0.000294,31]
[343479580,1732656638490,-3000.0,0.0002941,2]
[343479581,1732656638499,-3000.0,0.0002942,2]
[343479582,1732656638509,-3000.0,0.0002943,2]
[343479583,1732656638519,-587.0,0.00029439,2]
[343479584,1732656638529,-3000.0,0.0002944,2]
[343479585,1732656638538,-3000.0,0.0002945,2]
[343479586,1732656638547,-3000.0,0.0002946,2]
[343479587,1732656638556,-3000.0,0.0002947,2]
[343479588,1732656638566,-3303.371374,0.0002948,2]
[343479589,1732656638575,-151.0,0.00029485,7]
[343479590,1732656638584,-531.0,0.00029503,2]
[343479591,1732656638594,-1105.0,0.00029503,2]
[343479592,1732656638603,-2378.0,0.00029503,2]
[343479593,1732656638613,-150.0,0.00029517,2]
[343479594,1732656638623,-153.0,0.00029534,30]
[343479595,1732656638633,-153.0,0.00029534,30]
[343479596,1732656638642,-153.0,0.00029534,30]
[343479597,1732656638651,-153.0,0.00029534,30]
[343479598,1732656638661,-153.0,0.00029534,30]
[343479600,1732656638671,-1661.28,0.000296,2]
[343479602,1732656638680,-300.0,0.000296,14]
[343479604,1732656638689,-151.0,0.00029667,7]
[343479606,1732656638699,-17134.59281892,0.000298,10]
[343479608,1732656638709,-500.0,0.00029821,5]
[343479609,1732656638718,-151.0,0.00029849,7]
[343479610,1732656638727,-150.15,0.00029851,7]
[343479611,1732656638738,-150.15,0.00029851,7]
[343479612,1732656638747,-500.0,0.00029851,7]
[343479613,1732656638756,-207.10846405,0.00029851,7]
[343479614,1732656638765,-151.0,0.00029879,7]
[343479615,1732656638774,-151.0,0.00029879,7]
[343479616,1732656638784,-151.0,0.00029879,7]
[343479617,1732656638793,-151.0,0.00029879,7]
[343479618,1732656638802,-151.0,0.00029879,7]
[343479619,1732656638811,-151.0,0.00029879,7]
[343479620,1732656638821,-151.0,0.00029879,7]
[343479621,1732656638830,-151.0,0.00029879,7]
[343479622,1732656638839,-151.0,0.00029879,7]
[343479623,1732656638848,-151.0,0.00029879,7]
[343479624,1732656638858,-155.148744,0.00029879,7]
[343479625,1732656638867,-215.818954,0.00029879,7]
[343479626,1732656638876,-215.818954,0.00029879,7]
[343479627,1732656638886,-215.818954,0.00029879,7]
[343479628,1732656638896,-215.818954,0.00029879,7]
[343479629,1732656638905,-215.818954,0.00029879,7]
[343479630,1732656638915,-215.818954,0.00029879,7]
[343479631,1732656638924,-215.818954,0.00029879,7]
[343479632,1732656638933,-215.818954,0.00029879,7]
[343479633,1732656638943,-215.818954,0.00029879,7]
[343479634,1732656638956,-215.818954,0.00029879,7]
[343479635,1732656638965,-215.818954,0.00029879,7]
[343479636,1732656638974,-215.818954,0.00029879,7]
[343479637,1732656638986,-215.818954,0.00029879,7]
[343479638,1732656638997,-215.818954,0.00029879,7]
[343479639,1732656639006,-215.818954,0.00029879,7]
[343479640,1732656639015,-215.818954,0.00029879,7]
[343479641,1732656639025,-215.818954,0.00029879,7]
[343479642,1732656639034,-215.818954,0.00029879,7]
[343479643,1732656639044,-215.818954,0.00029879,7]
[343479644,1732656639053,-215.818946,0.00029879,7]
[343479645,1732656639064,-151.0,0.00029879,7]
[343479646,1732656639078,-151.0,0.00029879,7]
[343479647,1732656639088,-151.0,0.00029879,7]
[343479648,1732656639100,-151.0,0.00029879,7]
[343479649,1732656639113,-151.0,0.00029879,7]
[343479650,1732656639123,-151.0,0.00029879,7]
[343479651,1732656639132,-151.0,0.00029879,7]
[343479652,1732656639142,-151.0,0.00029879,7]
[343479653,1732656639152,-151.0,0.00029879,7]
[343479654,1732656639161,-216.442888,0.00029879,7]
[343479655,1732656639171,-151.0,0.00029879,7]
[343479656,1732656639182,-151.0,0.00029879,7]
[343479657,1732656639191,-151.0,0.00029879,7]
[343479658,1732656639200,-151.0,0.00029879,7]
[343479659,1732656639211,-151.0,0.00029879,7]
[343479660,1732656639221,-151.0,0.00029879,7]
[343479661,1732656639230,-151.0,0.00029879,7]
[343479662,1732656639246,-151.0,0.00029879,7]
[343479663,1732656639256,-151.0,0.00029879,7]
[343479664,1732656639265,-151.0,0.00029879,7]
[343479665,1732656639275,-244.0526,0.00029879,7]
[343479666,1732656639284,-564.05414011,0.00029886,2]
[343479667,1732656639296,-359.40020614,0.00029886,2]
[343479668,1732656639306,-359.40020614,0.00029886,2]
[343479669,1732656639316,-194991.61029279,0.00029887,10]
[343479670,1732656639373,-1238.0,0.00029887,10]
[343479673,1732656640282,-1670.12155071,0.00029887,10]
[343479674,1732656643252,-1027.49295529,0.00026279,2]
[343479675,1732656643261,-57490.56637801,0.00029887,10]
[343483268,1732657119725,3291.8171053,0.0002968,120]
[343483269,1732657137619,160.556336,0.00013973,2]
[343483270,1732657137923,160.556336,0.00021661,2]
[343483275,1732657634140,-3737.45116664,0.00024953,2]
[343483276,1732657634163,-820.474091,0.00025073,2]
[343483277,1732657634185,-44.8903027,0.00025758,2]
[343483278,1732657647136,-306.468567,0.00025071,2]
[343483279,1732657647157,-775.5837883,0.00025758,2]
[343483280,1732657647178,-487.62083402,0.00025815,2]
[343483281,1732657647199,-312.79067075,0.00025915,2]
[343483282,1732657647220,-2598.2009921,0.00026052,2]
[343483283,1732657647248,-487.62083401,0.00026079,2]
[343483284,1732657647271,-300.0,0.0002611,2]
[343483285,1732657647293,-1511.98791269,0.0002611,2]
[343483295,1732657832528,-162.54027801,0.00026013,2]
[343483296,1732657832538,-910.40962733,0.00026043,2]
[343483297,1732657832548,-300.0,0.00026112,2]
[343483298,1732657832558,-300.0,0.00026112,2]
[343483299,1732657832573,-3697.0,0.00026112,2]
[343483300,1732657832586,-4484.20306534,0.00026113,2]
[343483301,1732657832599,-5729.60176008,0.00026114,2]
[343483302,1732657832624,-19170.39823992,0.00026114,2]
[343483303,1732657832636,-162.540278,0.00026178,2]
[343483304,1732657832652,-162.540278,0.00026343,2]
[343483305,1732657832666,-820.474091,0.00026443,2]
[343483306,1732657832678,-910.40962732,0.00026578,2]
[343483307,1732657832690,-910.40962732,0.00027113,2]
[343483308,1732657832701,-214.0,0.00027387,10]
[343483309,1732657832715,-155.68374399,0.00027397,2]
[343483310,1732657832727,-500.0,0.00027397,3]
[343483311,1732657832738,-500.0,0.00027397,3]
[343483312,1732657832750,-152.26642683,0.00027397,3]
[343483313,1732657832762,-500.0,0.00027397,3]
[343483314,1732657832774,-500.0,0.00027397,3]
[343483315,1732657832787,-500.0,0.00027397,3]
[343483316,1732657832800,-500.0,0.00027397,3]
[343483317,1732657832814,-500.4423719,0.00027397,3]
[343483318,1732657832826,-500.0,0.00027397,3]
[343483319,1732657832837,-500.0,0.00027397,3]
[343483320,1732657832850,-500.0,0.00027397,3]
[343483321,1732657832866,-500.0,0.00027397,3]
[343483322,1732657832879,-500.0,0.00027397,3]
[343483323,1732657832891,-500.0,0.00027397,3]
[343483324,1732657832903,-500.0,0.00027397,3]
[343483325,1732657832916,-500.0,0.00027397,3]
[343483326,1732657832928,-500.0,0.00027397,3]
[343483327,1732657832939,-500.0,0.00027397,3]
[343483328,1732657832952,-500.0,0.00027397,3]
[343483329,1732657832963,-500.0,0.00027397,3]
[343483330,1732657832975,-173.72,0.00027397,3]
[343483331,1732657832987,-500.0,0.00027397,3]
[343483332,1732657833000,-500.0,0.00027397,3]
[343483333,1732657833012,-500.0,0.00027397,3]
[343483334,1732657833024,-500.0,0.00027397,3]
[343483335,1732657833037,-500.0,0.00027397,3]
[343483336,1732657833051,-500.0,0.00027397,3]
[343483337,1732657833065,-163.76431461,0.00027397,3]
[343483338,1732657833077,-500.0,0.00027397,3]
[343483339,1732657833089,-183.16,0.00027397,3]
[343483340,1732657833102,-500.0,0.00027397,3]
[343483341,1732657833119,-500.0,0.00027397,3]
[343483342,1732657833132,-500.0,0.00027397,3]
[343483343,1732657833142,-500.0,0.00027397,3]
[343483344,1732657833153,-500.0,0.00027397,3]
[343483345,1732657833164,-162.853,0.00027397,16]
[343483346,1732657833175,-600.98578332,0.00027397,3]
[343483347,1732657833187,-500.0,0.00027397,3]
[343483348,1732657833200,-500.0,0.00027397,3]
[343483349,1732657833211,-500.0,0.00027397,3]
[343483350,1732657833223,-500.0,0.00027397,3]
[343483351,1732657833236,-500.0,0.00027397,3]
[343483352,1732657833248,-500.0,0.00027397,3]
[343483353,1732657833261,-500.0,0.00027397,3]
[343483354,1732657833272,-500.0,0.00027397,3]
[343483355,1732657833284,-620.69,0.00027397,3]
[343483356,1732657833296,-500.0,0.00027397,3]
[343483357,1732657833308,-500.0,0.00027397,2]
[343483358,1732657833319,-500.0,0.00027397,3]
[343483359,1732657833332,-500.0,0.00027397,3]
[343483360,1732657833343,-500.0,0.00027397,3]
[343483361,1732657833358,-369.92139839,0.00027397,3]
[343483362,1732657833376,-500.0,0.00027397,3]
[343483363,1732657833390,-500.0,0.00027397,3]
[343483364,1732657833405,-500.0,0.00027397,3]
[343483365,1732657833417,-549.19,0.00027397,3]
[343483366,1732657833429,-500.0,0.00027397,3]
[343483367,1732657833442,-500.0,0.00027397,3]
[343483368,1732657833452,-500.0,0.00027397,3]
[343483369,1732657833462,-500.0,0.00027397,3]
[343483370,1732657833472,-512.25,0.00027397,3]
[343483371,1732657833483,-500.0,0.00027397,3]
[343483372,1732657833494,-500.0,0.00027397,3]
[343483373,1732657833505,-500.0,0.00027397,3]
[343483374,1732657833518,-500.0,0.00027397,3]
[343483375,1732657833530,-500.0,0.00027397,3]
[343483376,1732657833542,-500.0,0.00027397,3]
[343483377,1732657833554,-500.0,0.00027397,3]
[343483378,1732657833567,-500.0,0.00027397,3]
[343483379,1732657833580,-500.0,0.00027397,3]
[343483380,1732657833593,-527.96753815,0.00027397,3]
[343483381,1732657833605,-500.0,0.00027397,3]
[343483382,1732657833621,-500.0,0.00027397,3]
[343483383,1732657833632,-500.0,0.00027397,3]
[343483384,1732657833644,-321.75649891,0.00027397,3]
[343483385,1732657833656,-500.0,0.00027397,3]
[343483386,1732657833668,-500.0,0.00027397,3]
[343483387,1732657833680,-500.0,0.00027397,3]
[343483388,1732657833691,-500.0,0.00027397,3]
[343483389,1732657833704,-217.93,0.00027397,3]
[343483390,1732657833718,-500.0,0.00027397,3]
[343483391,1732657833729,-500.0,0.00027397,3]
[343483392,1732657833741,-500.0,0.00027397,3]
[343483393,1732657833753,-500.0,0.00027397,3]
[343483394,1732657833764,-601.48495516,0.00027397,3]
[343483395,1732657833776,-500.0,0.00027397,3]
[343483396,1732657833787,-500.0,0.00027397,3]
[343483397,1732657833798,-639.4582706,0.00027397,3]
[343483398,1732657833811,-500.0,0.00027397,3]
[343483399,1732657833823,-500.0,0.00027397,3]
[343483400,1732657833835,-500.0,0.00027397,3]
[343483401,1732657833847,-500.0,0.00027397,3]
[343483402,1732657833860,-500.0,0.00027397,3]
[343483403,1732657833871,-504.98011515,0.00027397,3]
[343483404,1732657833883,-500.0,0.00027397,3]
[343483405,1732657833894,-523.45027506,0.00027397,3]
[343483406,1732657833905,-500.0,0.00027397,3]
[343483407,1732657833916,-500.0,0.00027397,3]
[343483408,1732657833928,-500.0,0.00027397,3]
[343483409,1732657833939,-500.0,0.00027397,3]
[343483410,1732657833964,-500.0,0.00027397,3]
[343483411,1732657833980,-629.42,0.00027397,3]
[343483412,1732657833992,-537.48480624,0.00027397,3]
[343483413,1732657834006,-501.22589495,0.00027397,3]
[343483414,1732657834018,-550.10275565,0.00027397,3]
[343483415,1732657834031,-500.0,0.00027397,3]
[343483416,1732657834044,-500.0,0.00027397,3]
[343483417,1732657834220,-500.0,0.00027397,3]
[343483418,1732657834231,-500.0,0.00027397,3]
[343483419,1732657834241,-500.0,0.00027397,3]
[343483420,1732657834252,-500.0,0.00027397,3]
[343483421,1732657834262,-500.0,0.00027397,3]
[343483422,1732657834272,-537.51,0.00027397,3]
[343483423,1732657834282,-500.0,0.00027397,3]
[343483424,1732657834293,-500.0,0.00027397,3]
[343483425,1732657834302,-500.0,0.00027397,3]
[343483426,1732657834312,-500.0,0.00027397,3]
[343483427,1732657834322,-500.0,0.00027397,3]
[343483428,1732657834331,-500.0,0.00027397,3]
[343483429,1732657834341,-500.0,0.00027397,3]
[343483430,1732657834354,-583.20773139,0.00027397,3]
[343483431,1732657834368,-502.32,0.00027397,3]
[343483432,1732657834380,-502.32,0.00027397,3]
[343483433,1732657834390,-502.32,0.00027397,3]
[343483434,1732657834399,-502.32,0.00027397,3]
[343483435,1732657834410,-500.0,0.00027397,3]
[343483436,1732657834420,-405.80060746,0.00027397,3]
[343483437,1732657834430,-185.71611984,0.00027397,3]
[343483438,1732657834440,-500.0,0.00027397,10]
[343483439,1732657834450,-200.0,0.00027397,3]
[343483440,1732657834460,-500.0,0.00027397,3]
[343483441,1732657834470,-500.0,0.00027397,3]
[343483442,1732657834479,-500.0,0.00027397,3]
[343483443,1732657834489,-500.0,0.00027397,3]
[343483444,1732657834499,-500.0,0.00027397,3]
[343483445,1732657834510,-458.27658123,0.00027397,3]
[343483446,1732657834519,-500.0,0.00027397,3]
[343483447,1732657834529,-500.0,0.00027397,3]
[343483448,1732657834539,-500.0,0.00027397,3]
[343483449,1732657834548,-500.0,0.00027397,3]
[343483450,1732657834558,-500.0,0.00027397,3]
[343483451,1732657834568,-500.0,0.00027397,3]
[343483452,1732657834578,-500.0,0.00027397,3]
[343483453,1732657834588,-500.0,0.00027397,3]
[343483454,1732657834597,-500.0,0.00027397,3]
[343483455,1732657834611,-500.0,0.00027397,3]
[343483456,1732657834621,-500.0,0.00027397,3]
[343483457,1732657834630,-500.0,0.00027397,3]
[343483458,1732657834641,-500.0,0.00027397,3]
[343483459,1732657834650,-500.0,0.00027397,3]
[343483460,1732657834660,-508.58,0.00027397,3]
[343483461,1732657834670,-386.27168299,0.00027397,3]
[343483462,1732657834680,-500.0,0.00027397,3]
[343483463,1732657834690,-502.1,0.00027397,3]
[343483464,1732657834701,-361.63,0.00027397,3]
[343483465,1732657834711,-537.18,0.00027397,3]
[343483466,1732657834720,-570.17,0.00027397,3]
[343483467,1732657834730,-500.0,0.00027397,3]
[343483468,1732657834740,-500.0,0.00027397,3]
[343483469,1732657834750,-545.8,0.00027397,3]
[343483470,1732657834759,-500.0,0.00027397,3]
[343483471,1732657834769,-500.0,0.00027397,3]
[343483472,1732657834779,-500.0,0.00027397,3]
[343483473,1732657834788,-500.0,0.00027397,3]
[343483474,1732657834798,-500.0,0.00027397,3]
[343483475,1732657834807,-500.0,0.00027397,3]
[343483476,1732657834817,-511.34,0.00027397,3]
[343483477,1732657834827,-500.0,0.00027397,3]
[343483478,1732657834838,-201.91,0.00027397,3]
[343483479,1732657834847,-500.0,0.00027397,3]
[343483480,1732657834860,-500.0,0.00027397,3]
[343483481,1732657834870,-154.63828917,0.00027397,3]
[343483482,1732657834880,-500.0,0.00027397,3]
[343483483,1732657834891,-500.0,0.00027397,3]
[343483484,1732657834900,-500.0,0.00027397,3]
[343483485,1732657834910,-500.0,0.00027397,3]
[343483486,1732657834921,-500.0,0.00027397,3]
[343483487,1732657834931,-500.0,0.00027397,3]
[343483488,1732657834940,-500.0,0.00027397,3]
[343483489,1732657834951,-500.0,0.00027397,3]
[343483490,1732657834961,-500.0,0.00027397,3]
[343483491,1732657834971,-500.0,0.00027397,3]
[343483492,1732657834981,-510.48,0.00027397,3]
[343483493,1732657834991,-500.0,0.00027397,3]
[343483494,1732657835001,-500.0,0.00027397,3]
[343483495,1732657835011,-500.0,0.00027397,3]
[343483496,1732657835021,-500.0,0.00027397,3]
[343483497,1732657835030,-541.71,0.00027397,3]
[343483498,1732657835040,-500.0,0.00027397,3]
[343483499,1732657835050,-500.0,0.00027397,3]
[343483500,1732657835060,-170.48509883,0.00027397,3]
[343483501,1732657835069,-500.0,0.00027397,3]
[343483502,1732657835080,-500.0,0.00027397,3]
[343483503,1732657835090,-500.0,0.00027397,3]
[343483504,1732657835101,-500.0,0.00027397,3]
[343483505,1732657835113,-500.0,0.00027397,3]
[343483506,1732657835122,-508.09685521,0.00027397,3]
[343483507,1732657835131,-500.0,0.00027397,3]
[343483508,1732657835141,-501.70088862,0.00027397,3]
[343483509,1732657835151,-500.0,0.00027397,3]
[343483510,1732657835160,-500.0,0.00027397,3]
[343483511,1732657835169,-500.0,0.00027397,3]
[343483512,1732657835179,-500.0,0.00027397,3]
[343483513,1732657835190,-152.0,0.00027407,2]
[343483514,1732657835201,-910.40962732,0.00027648,2]
[343483515,1732657835211,-500.0,0.00027698,7]
[343483516,1732657835220,-500.0,0.00027698,7]
[343483517,1732657835229,-499.1696486,0.00027698,7]
[343483518,1732657835239,-910.40962732,0.00028184,2]
[343483519,1732657835249,-420.0,0.00028256,2]
[343483520,1732657835259,-153.0,0.00028575,30]
[343483521,1732657835268,-910.40962732,0.00028719,2]
[343483522,1732657835279,-300.0,0.00028723,2]
[343483523,1732657835290,-910.40962732,0.00029254,2]
[343483524,1732657835301,-160.556336,0.00029349,2]
[343483525,1732657835311,-502.32,0.0002938,3]
[343483526,1732657835321,-6774.02757722,0.000294,7]
[343483527,1732657835330,-153.64,0.000294,31]
[343483528,1732657835341,-153.64,0.000294,31]
[343483529,1732657835351,-153.64,0.000294,31]
[343483530,1732657835363,-153.64,0.000294,31]
[343483531,1732657835373,-153.64,0.000294,31]
[343483532,1732657835384,-153.64,0.000294,31]
[343483533,1732657835393,-153.64,0.000294,31]
[343483534,1732657835403,-153.64,0.000294,31]
[343483535,1732657835413,-756.7433399,0.00029532,8]
[343483536,1732657835423,-500.0,0.00029555,2]
[343483537,1732657835432,-154.00603963,0.00029555,2]
[343483538,1732657835442,-500.0,0.00029555,2]
[343483539,1732657835451,-500.0,0.00029555,2]
[343483540,1732657835461,-500.0,0.00029555,2]
[343483541,1732657835472,-500.0,0.00029555,2]
[343483542,1732657835481,-500.0,0.00029555,2]
[343483543,1732657835491,-500.63809363,0.00029555,2]
[343483544,1732657835501,-500.0,0.00029555,2]
[343483545,1732657835511,-386.91012939,0.00029555,2]
[343483546,1732657835520,-500.0,0.00029555,2]
[343483547,1732657835531,-500.0,0.00029555,2]
[343483548,1732657835541,-474.95841361,0.00029555,2]
[343483549,1732657835551,-276.21883612,0.00029555,2]
[343483550,1732657835560,-150.0,0.00029558,2]
[343483551,1732657835570,-531.0,0.00029558,2]
[343483552,1732657835579,-1103.0,0.00029558,2]
[343483553,1732657835588,-2378.0,0.00029558,2]
[343483554,1732657835598,-1585.38,0.000296,2]
[343483555,1732657835608,-330.7224101,0.00029689,2]
[343483556,1732657835624,-330.72241007,0.00029714,2]
[343483557,1732657835634,-330.72241007,0.00029739,2]
[343483558,1732657835643,-330.72241007,0.00029764,2]
[343483559,1732657835655,-502.32,0.00029785,3]
[343483560,1732657835664,-502.32,0.00029786,3]
[343483561,1732657835673,-502.32,0.00029786,3]
[343483562,1732657835683,-502.32,0.00029786,3]
[343483563,1732657835694,-502.32,0.00029786,3]
[343483564,1732657835704,-502.32,0.00029786,3]
[343483565,1732657835714,-502.32,0.00029786,3]
[343483566,1732657835724,-502.32,0.00029786,3]
[343483567,1732657835733,-502.32,0.00029786,3]
[343483568,1732657835742,-502.32,0.00029786,3]
[343483569,1732657835751,-502.32,0.00029786,3]
[343483570,1732657835765,-502.32,0.00029786,3]
[343483571,1732657835775,-126001.59245523,0.00029787,2]
[343483622,1732657838681,-308.4744446,0.00029555,2]